Workbook

Sheet 一般债券 (hidden)
A1: 附表1：
A2: 2025年开平市新增一般债务限额安排项目情况表
H3: 单位：万元
A4: 序号 | B4: 县（市、区） | C4: 项目名称 | D4: 项目单位 | E4: 项目领域 | F4: 建设状态 | G4: 项目总投资 | H4: 安排金额
C5: 无

Sheet 一般
A1: 附表2：
A2: 2025年开平市一般公共预算收支调整表
A3: 编制单位：开平市财政局 | J3: 单位：万元
A4: 收入 | F4: 支出
A5: 项目 | B5: 年初预算 | C5: 第一次调整预算后金额 | D5: 第二次调整预算后金额 | E5: 相比第一次调整预算增减额 | F5: 项目 | G5: 年初预算 | H5: 第一次调整预算后金额 | I5: 第二次调整预算后金额 | J5: 相比第一次调整预算增减额
A6: 一、一般公共预算收入 | B6: =B7+B8 -> 329,998 | C6: =C7+C8 -> 329,998 | D6: =D7+D8 -> 422,739 | E6: =D6-C6 -> 92,741 | F6: 一、一般公共预算支出 | G6: 628,173 | H6: 628,218 | I6: 642,998 | J6: =I6-H6 -> 14,780
A7: （一）税收收入 | B7: 193,653 | C7: 193,653 | D7: 286,394 | E7: 92,741 | F7: 二、转移性支出 | G7: =G8+G14 -> 51,252 | H7: 51,252 | I7: 129,213 | J7: 77,961 | P7: 税收 | Q7: 非税 | R7: 合计 | S7: 支出
A8: （二）非税收入 | B8: 136,345 | C8: 136,345 | D8: 136,345 | E8: 0 | F8: （一）上解上级支出 | G8: =SUM(G9:G12) -> 51,252 | H8: 51,252 | I8: 129,213 | J8: 77,961 | O8: 2022年实绩 | P8: 155265 | Q8: 152477 | R8: =P8+Q8 -> 307742 | S8: 566454
A9: 二、转移性收入 | B9: =B10+B20 -> 332,663 | C9: =C10+C20 -> 332,663 | D9: =D10+D20 -> 332,663 | E9: 0 | F9: 体制上解支出 | G9: 6,513 | H9: 6,513 | I9: =6513+77961 -> 84,474 | J9: 77,961 | O9: 2023年年初预算 | P9: 209448 | Q9: 113681 | R9: 323129 | S9: 581526
A10: （一）上级补助收入 | B10: =B11+B16+B17 -> 332,663 | C10: =C11+C16+C17 -> 332,663 | D10: =D11+D16+D17 -> 332,663 | E10: 0 | F10: 出口退税专项上解支出 | G10: 8,116 | H10: 8,116 | I10: 8,116 | J10: 0 | O10: 比上年实绩 | P10: =P9/P8-1 -> 34.90% | Q10: -25.44% | R10: 5.00% | S10: 2.66%
A11: 1、返还性收入 | B11: 29,944 | C11: 29,944 | D11: 29,944 | F11: 成品油价格和税费改革专项上解支出 | O11: 2023年调整预算 | P11: 189448 | Q11: 119833 | R11: 309281 | S11: 606763
A12: 增值税和消费税税收返还收入 | B12: 8,333 | C12: 8,333 | D12: 8,333 | F12: 专项上解支出 | G12: 36,623 | H12: 36,623 | I12: =36623 -> 36,623 | J12: =I12-H12 -> 0 | O12: 比上年实绩 | P12: =P11/P8-1 -> 22.02% | Q12: -21.41% | R12: 0.50% | S12: 7.12%
A13: 所得税基数返还收入 | B13: 4,681 | C13: 4,681 | D13: 4,681 | O13: 比年初预算 | P13: =P11-P9 -> -20000 | Q13: 6152 | R13: -13848 | S13: 25237
A14: 成品油价格和税费改革税收返还收入 | B14: 2,252 | C14: 2,252 | D14: 2,252 | F14: （二）补助下级支出
A15: 其他税收返还收入 | B15: 14,678 | C15: 14,678 | D15: 14,678 | F15: 1、返还性支出
A16: 2、一般性转移支付收入 | B16: 268,416 | C16: 268,416 | D16: 268,416 | E16: =D16-C16 -> 0 | F16: 增值税和消费税税收返还支出
A17: 3、专项转移支付收入 | B17: 34,303 | C17: 34,303 | D17: 34,303 | E17: =D17-C17 -> 0 | F17: 所得税基数返还支出
F18: 成品油价格和税费改革税收返还支出
A19: （二）下级上解收入 | F19: 其他税收返还支出
A20: 体制上解收入 | F20: 2、一般性转移支付
A21: 出口退税专项上解收入 | F21: 3、专项转移支付支出
A22: 成品油价格和税费改革专项上解收入
A23: 专项上解收入
A24: 三、债务转贷收入 | B24: 1,329 | C24: 1,374 | D24: 1,374 | E24: =D24-C24 -> 0
A25: （一）再融资债券收入 | B25: 1,329 | C25: 1,374 | D25: 1,374
A26: （二）一般债券收入 | F26: 三、地方政府债务还本支出 | G26: 1,477 | H26: 1,477 | I26: 1,477 | J26: =I26-H26 -> 0
A27: 四、上年结余 | B27: 715 | C27: 715 | D27: 715 | E27: =D27-C27 -> 0 | F27: 四、债务转贷支出
A28: 五、调入资金 | B28: 478 | C28: 478 | D28: 478 | E28: =D28-C28 -> 0 | F28: 五、安排预算稳定调节基金
A29: 六、动用预算稳定调节基金 | B29: 8,515 | C29: 8,515 | D29: 8,515 | F29: 六、调出资金
A30: 七、区域间转移性收入 | B30: 7,204 | C30: 7,204 | D30: 7,204 | E30: =D30-C30 -> 0 | F30: 七、年终结余 | J30: =I30-H30 -> 0
A31: 收入总计 | B31: =B6+B9+B27+B28+B29+B30+B24 -> 680,902 | C31: =C6+C9+C27+C28+C29+C30+C24 -> 680,947 | D31: =D6+D9+D27+D28+D29+D30+D24 -> 773,688 | E31: =E6+E9+E27+E28+E29+E30+E24 -> 92,741 | F31: 支出总计 | G31: =G27+G24+G7+G6+G23+G28+G22+G26 -> 680,902 | H31: =H27+H24+H7+H6+H23+H28+H22+H26 -> 680,947 | I31: =I27+I2+I264+I7+I6+I23+I28+I22+I26 -> 773,688 | J31: =J27+J24+J7+J6+J23+J28+J22 -> 92,741 | L31: =D31-I31 -> 0
